bitfinex/quotes_SOLUSD_20260228
["timestamp","ask_amount","ask_price","bid_price","bid_amount"]
[1772305587110,1.39906116,82.094,82.033,1.34303485]
[1772305587434,1.39906116,82.089,82.05,17.2396475]
[1772305587617,1.39906116,82.089,82.051,1.34303485]
[1772305588021,1.39906116,82.089,82.06,15.89661265]
[1772305588220,1.39906116,82.107,82.071,1.34303485]
[1772305589229,1.39906116,82.127,82.091,1.34303485]
[1772305590431,1.39906116,82.125,82.092,12.18145495]
[1772305591127,1.39906116,82.125,82.092,13.5244898]
[1772305591527,1.39906116,82.125,82.093,1.34303485]
[1772305592338,13.57576955,82.124,82.094,12.18115818]
[1772305592840,1.39906116,82.123,82.094,12.18115818]
[1772305595243,1.39906116,82.121,82.093,1.34303485]
[1772305595421,1.39906116,82.121,82.09,15.89661265]
[1772305595623,1.39906116,82.121,82.085,1.34303485]
[1772305595923,1.39906116,82.121,82.09,15.89661265]
[1772305596239,1.39906116,82.121,82.091,1.34303485]
[1772305596640,1.39906116,82.121,82.09,15.89661265]
[1772305597322,1.39906116,82.119,82.086,1.34303485]
[1772305597523,1.39906116,82.119,82.08,28.07980002]
[1772305597937,1.39906116,82.119,82.08,29.42283487]
[1772305598133,1.39906116,82.119,82.081,1.34303485]
[1772305599316,1.39906116,82.117,82.082,13.52597386]
[1772305599544,1.39906116,82.117,82.083,1.34303485]
[1772305601645,1.39906116,82.115,82.085,1.34303485]
[1772305603246,1.39906116,82.113,82.086,13.52538019]
[1772305603456,1.39906116,82.113,82.086,1.34303485]
[1772305604246,1.39906116,82.113,82.078,1.71832202]
[1772305604440,1.39906116,82.113,82.08,17.61493467]
[1772305604628,1.39906116,82.113,82.081,1.71832202]
[1772305605253,12.17848791,82.112,82.083,1.71832202]
[1772305605748,1.39906116,82.113,82.083,1.71832202]
[1772305605949,13.57752855,82.113,82.083,1.71832202]
[1772305606132,1.60051627,82.112,82.083,1.71832202]
[1772305607447,15.89661265,82.12,82.08,15.89661265]
[1772305607448,1.61714447,82.11,82.085,1.71061102]
[1772305607944,1.61714447,82.11,82.078,1.71061102]
[1772305608139,1.61714447,82.089,82.045,12.18839513]
[1772305608330,91.33977176,82.111,82.056,3.69383402]
[1772305608331,1.10546174,82.069,82.056,3.69383402]
[1772305608526,1.10546174,82.069,82.038,12.18947317]
[1772305609046,1.10546174,82.069,82.038,13.96841377]
[1772305609547,12.1850173,82.068,82.038,13.96841377]
[1772305609727,12.1850173,82.068,82.039,1.7789406]
[1772305610129,1.10546174,82.069,82.041,1.7789406]
[1772305610838,13.29038031,82.069,82.041,1.7789406]
[1772305611545,0.04418324,82.068,82.033,1.7789406]
[1772305612842,0.04418324,82.068,82.034,13.96900813]
[1772305613052,0.04418324,82.068,82.035,1.7789406]
[1772305614250,0.08539607,82.059,82.021,1.7789406]
[1772305614453,0.08539607,82.059,82.022,1.7789406]
[1772305614859,0.09784807,82.058,82.023,12.19170232]
[1772305615035,0.09784807,82.058,82.023,13.97064292]
[1772305615455,12.18579893,82.063,82.031,1.7789406]
[1772305615666,12.28306523,82.067,82.031,1.7789406]
[1772305616039,0.09784807,82.067,82.04,15.89661265]
[1772305616243,12.18531425,82.066,82.039,1.7789406]
[1772305616938,0.09784807,82.067,82.04,12.18917601]
[1772305617141,0.09784807,82.067,82.04,13.96811661]
[1772305617354,0.12232464,82.084,82.041,1.7789406]
[1772305617858,0.13435248,82.079,82.041,1.7789406]
[1772305618554,12.31773678,82.079,82.043,1.7789406]
[1772305619136,42.77619753,82.079,82.043,1.7789406]
[1772305620738,42.77619753,82.079,82.045,1.7789406]
[1772305621047,12.18130656,82.093,82.051,1.7789406]
[1772305621251,0.16961341,82.069,82.044,1.7789406]
[1772305621644,15.89661265,82.07,82.037,1.7789406]
[1772305621843,15.89661265,82.06,82.037,1.7789406]
[1772305622249,0.18109809,82.063,82.037,1.7789406]
[1772305622455,15.89661265,82.06,82.037,1.7789406]
[1772305622954,12.18590821,82.062,82.037,1.7789406]
[1772305623151,0.19245085,82.059,82.03,1.7789406]
[1772305623360,15.89661265,82.05,82.015,1.7789406]
[1772305623748,0.19245085,82.059,82.015,1.7789406]
[1772305624555,15.89661265,82.05,82.017,1.7789406]
[1772305624864,16.10028587,82.05,82.017,1.7789406]
[1772305625362,0.20367322,82.05,82.017,1.7789406]
[1772305625554,16.10028587,82.05,82.017,1.7789406]
[1772305626759,0.23657283,82.064,82.019,1.7789406]
[1772305626964,42.6444428,82.074,82.031,1.7789406]
[1772305627165,12.18412651,82.074,82.041,1.7789406]
[1772305629367,0.25788092,82.077,82.043,1.7789406]
[1772305629865,15.89661265,82.06,82.043,1.7789406]
[1772305630165,15.89661265,82.07,82.035,1.7789406]
[1772305630371,0.26835176,82.075,82.035,1.7789406]
[1772305630553,42.64184505,82.079,82.041,1.7789406]
[1772305630753,15.89661265,82.07,82.021,42.67197548]
[1772305630975,1.14067081,82.069,82.021,12.19197646]
[1772305631455,1.14067081,82.067,82.021,12.19197646]
[1772305631843,1.14067081,82.067,82.021,42.67197548]
[1772305632968,1.14067081,82.067,82.022,1.71061102]
[1772305633166,1.14067081,82.067,82.031,1.71061102]
[1772305633352,13.34633091,82.066,82.033,1.71061102]
[1772305633955,1.17101465,82.065,82.033,1.71061102]
[1772305634571,15.89661265,82.06,82.033,1.71061102]
[1772305634949,1.18089781,82.059,82.033,1.71061102]
[1772305635970,12.18650223,82.058,82.033,1.71061102]
[1772305637371,1.21040107,82.057,82.024,1.80110271]
[1772305637561,1.21040107,82.049,82.008,1.80110271]
[1772305638074,1.22009821,82.047,82.01,1.80110271]
[1772305638493,42.6579563,82.048,82.011,1.80110271]
[1772305638850,0.75999999,82.074,82.011,1.80110271]
[1772305638851,29.8,82.045,82.011,1.80110271]
[1772305639057,29.8,82.045,82.01,15.89661265]
[1772305639058,29.8,82.045,82.021,1.80110271]
[1772305640061,12.18665074,82.057,82.023,1.80110271]
[1772305640378,1.23915964,82.056,82.023,1.80110271]
[1772305641255,12.18694777,82.055,82.023,1.80110271]
[1772305641461,1.24852646,82.054,82.025,1.80110271]
[1772305641875,1.2577857,82.07,82.031,1.80110271]
[1772305642173,13.44250606,82.07,82.031,1.80110271]
[1772305642360,1.2577857,82.059,82.01,15.89661265]
[1772305642690,1.2577857,82.049,82.012,1.80110271]
[1772305643478,15.89661265,82.05,82.014,1.80110271]
[1772305643479,1.26693858,82.047,82.014,1.80110271]
[1772305643977,12.18736283,82.053,82.021,1.80110271]
[1772305644154,1.27598634,82.064,82.031,1.80110271]
[1772305644558,1.27598634,82.079,82.031,1.80110271]
[1772305644757,1.28493017,82.069,82.041,1.80110271]
[1772305645757,1.29377127,82.109,82.061,1.80110271]
[1772305645958,1.29377127,82.116,82.081,1.80110271]
[1772305646175,1.29377127,82.109,82.082,1.80110271]
[1772305646379,1.29377127,82.109,82.074,1.80110271]
[1772305647861,1.30251083,82.107,82.076,1.80110271]
[1772305649960,1.3281318,82.099,82.06,1.80110271]
[1772305650165,15.88540534,82.09,82.06,1.80110271]
[1772305650675,1.3281318,82.099,82.06,1.80110271]
[1772305651176,48.70410509,82.129,82.071,1.80110271]
[1772305651177,15.88540534,82.11,82.071,1.80110271]
[1772305651368,12.17893288,82.109,82.071,1.80110271]
[1772305653177,12.17893288,82.109,82.073,1.80110271]
[1772305653682,1.35288002,82.108,82.072,12.18442343]
[1772305653869,1.35288002,82.108,82.073,1.80110271]
[1772305654069,1.36094066,82.099,82.073,1.80110271]
[1772305654882,1.36094066,82.099,82.068,12.18497443]
[1772305655684,1.3689087,82.097,82.068,12.18497443]
[1772305655978,1.3689087,82.097,82.069,1.80110271]
[1772305657091,1.3689087,82.097,82.062,12.18587896]
[1772305657386,1.3689087,82.097,82.062,13.98698167]
[1772305657688,1.38457129,82.095,82.065,1.80110271]
[1772305657875,0.97869998,82.126,82.081,1.80110271]
[1772305658078,1.39226792,82.125,82.101,1.80110271]
[1772305658273,5.9306021,82.12,82.081,1.80110271]
[1772305658487,1.39226792,82.119,82.081,1.80110271]
[1772305659486,1.39987614,82.109,82.072,1.80110271]
[1772305659681,13.57884376,82.109,82.081,1.80110271]
[1772305660090,1.40739698,82.108,82.081,1.80110271]
[1772305661370,12.17896762,82.109,82.081,1.80110271]
[1772305661593,42.61796042,82.125,82.083,1.80110271]
[1772305661782,42.61796042,82.125,82.091,1.80110271]
[1772305661970,1.42218049,82.119,82.091,1.80110271]
[1772305662176,1.42218049,82.119,82.077,12.18356375]
[1772305662792,1.42218049,82.119,82.09,5.9306021]
[1772305663095,1.42218049,82.119,82.08,5.9306021]
[1772305663594,12.17759809,82.118,82.081,42.64080602]
[1772305663887,2.04620345,82.117,82.081,42.64080602]
[1772305664090,2.04620345,82.117,82.082,1.98252189]
[1772305664890,12.17759809,82.118,82.084,1.98252189]
[1772305665092,5.9306021,82.11,82.084,1.98252189]
[1772305665295,2.04620345,82.117,82.084,1.98252189]
[1772305666478,30.44362449,82.119,82.086,1.91222183]
[1772305666479,2.01449761,82.115,82.086,1.91222183]
[1772305669393,12.17819129,82.114,82.088,1.91222183]
[1772305669600,2.01449761,82.113,82.088,1.91222183]
[1772305671298,2.01449761,82.097,82.051,1.91222183]
[1772305671500,2.01449761,82.079,82.051,1.91222183]
[1772305671698,2.01449761,82.089,82.061,1.91222183]
[1772305672076,12.18009923,82.102,82.071,1.91222183]
[1772305673504,2.01449761,82.101,82.073,1.91222183]
[1772305673795,2.01449761,82.099,82.073,1.91222183]
[1772305676916,2.01449761,82.097,82.062,1.91222183]
[1772305677087,2.01449761,82.089,82.062,1.91222183]
[1772305677291,2.01449761,82.079,82.041,1.91222183]
[1772305677587,5.9306021,82.09,82.051,1.91222183]
[1772305678201,7.94509971,82.09,82.051,1.91222183]
[1772305678500,42.63197641,82.098,82.036,42.6641962]
[1772305678501,12.18056469,82.098,82.061,1.91222183]
[1772305679204,14.1950623,82.098,82.063,1.91222183]
[1772305680106,2.01449761,82.089,82.063,1.91222183]
[1772305680604,2.01449761,82.096,82.063,1.91222183]
[1772305680797,12.18056469,82.098,82.071,1.91222183]
[1772305681308,2.01449761,82.11,82.073,1.91222183]
[1772305681605,7.94509971,82.11,82.073,1.91222183]
[1772305681808,2.01449761,82.109,82.073,1.91222183]
[1772305681984,2.01449761,82.119,82.081,1.91222183]
[1772305684003,2.01449761,82.117,82.081,1.91222183]
[1772305684205,2.01449761,82.117,82.081,14.09525367]
[1772305684399,2.01449761,82.117,82.082,1.91222183]
[1772305685907,2.01449761,82.109,82.066,1.91222183]
[1772305686090,2.01449761,82.109,82.071,1.91222183]
[1772305687789,2.01449761,82.116,82.071,1.91222183]
[1772305688101,2.01449761,82.114,82.083,1.91222183]
[1772305690088,2.01449761,82.114,82.085,1.91222183]
[1772305690286,2.01449761,82.128,82.091,1.91222183]
[1772305691034,12.1763367,82.127,82.091,1.91222183]
[1772305691516,2.01449761,82.126,82.091,1.91222183]
[1772305692017,12.17656012,82.125,82.093,1.91222183]
[1772305692716,2.01449761,82.124,82.093,1.91222183]
[1772305694099,12.17685666,82.123,82.095,1.91222183]
[1772305694294,14.19135427,82.123,82.095,1.91222183]
[1772305694921,12.17578428,82.131,82.101,1.91222183]
[1772305695700,2.01449761,82.133,82.101,1.91222183]
[1772305695896,12.17552232,82.132,82.101,1.91222183]
[1772305697211,12.17552232,82.132,82.103,1.99126667]
[1772305698919,2.15058917,82.131,82.103,1.99126667]
[1772305699221,2.15058917,82.129,82.105,1.99126667]
[1772305701805,2.15058917,82.127,82.081,12.18308743]
[1772305702007,2.15058917,82.127,82.09,5.9306021]
[1772305703123,2.15058917,82.125,82.091,12.18160334]
[1772305703824,2.15058917,82.119,82.081,1.99126667]
[1772305705201,48.67533665,82.178,82.091,1.99126667]
[1772305705202,2.15058917,82.12,82.091,1.99126667]
[1772305705403,12.17713704,82.122,82.091,1.99126667]
[1772305705606,30.43788643,82.135,82.091,1.99126667]
[1772305705607,14.32700102,82.126,82.091,1.99126667]
[1772305706045,2.15058917,82.125,82.091,1.99126667]
[1772305707419,12.17670839,82.124,82.093,1.99126667]
[1772305707620,2.15058917,82.123,82.093,1.99126667]
[1772305709625,12.17700494,82.122,82.095,1.99126667]
[1772305710230,2.15058917,82.123,82.095,1.99126667]
[1772305710434,14.32748001,82.123,82.095,1.99126667]
[1772305710932,2.15058917,82.122,82.095,1.99126667]
[1772305712235,2.15058917,82.12,82.097,1.99126667]
[1772305712731,2.15058917,82.109,82.075,1.99126667]
[1772305713837,2.15058917,82.107,82.076,12.18382962]
[1772305714636,2.15058917,82.099,82.061,1.99126667]
[1772305715012,2.15058917,82.089,82.058,12.18650223]
[1772305715318,2.15058917,82.104,82.071,1.99126667]
[1772305715820,12.1798229,82.103,82.073,1.99126667]
[1772305716318,2.15058917,82.104,82.073,1.99126667]
[1772305717231,2.15058917,82.103,82.073,1.99126667]
[1772305718331,2.15058917,82.101,82.074,12.18412651]
[1772305719533,2.15058917,82.101,82.075,1.99126667]
[1772305721137,2.15058917,82.099,82.076,12.18382962]
[1772305722613,2.15058917,82.099,82.077,1.99126667]
[1772305722923,2.15058917,82.106,82.081,1.99126667]
[1772305723249,12.17952621,82.105,82.081,1.99126667]
[1772305723941,2.16777275,82.104,82.081,1.99126667]
[1772305724122,2.16777275,82.104,82.072,12.18432368]
[1772305724440,2.16777275,82.104,82.072,14.27342392]
[1772305724738,2.16777275,82.104,82.073,2.08910024]
[1772305725817,2.16777275,82.102,82.075,2.08910024]
[1772305728438,2.16777275,82.102,82.07,5.92770615]
[1772305728439,12.1801196,82.101,82.077,2.12010772]
[1772305728746,2.22829534,82.101,82.077,2.12010772]
[1772305730244,12.18026796,82.1,82.078,12.18353273]
[1772305730460,12.18026796,82.1,82.079,2.12010772]
[1772305732429,12.18026796,82.1,82.081,2.12010772]
[1772305732625,2.22829534,82.099,82.065,2.12010772]
[1772305732829,2.22829534,82.099,82.066,12.18531425]
[1772305733031,2.22829534,82.099,82.07,5.92770615]
[1772305733638,2.22829534,82.099,82.066,12.18531425]
[1772305733936,2.22829534,82.099,82.067,2.12010772]
[1772305734252,12.18056469,82.098,82.069,2.12010772]
[1772305735048,12.18056469,82.098,82.048,2.12010772]
[1772305735049,2.22829534,82.079,82.048,2.12010772]
[1772305736542,2.22829534,82.077,82.05,2.12010772]
[1772305738651,12.18382962,82.076,82.052,2.12010772]
[1772305738949,2.22829534,82.059,82.023,2.12010772]
[1772305739152,5.92770615,82.04,82.023,2.12010772]
[1772305739354,2.22829534,82.039,82.016,2.12010772]
[1772305739650,2.22829534,82.047,82.011,2.12010772]
[1772305739835,5.92770615,82.04,82.011,2.12010772]
[1772305740152,2.22829534,82.041,82.011,2.12010772]
[1772305740733,18.1155419,82.05,82.013,2.12010772]
[1772305740941,2.22829534,82.052,82.021,2.12010772]
[1772305741147,2.22829534,82.067,82.031,2.12010772]
[1772305742060,2.22829534,82.049,82.014,2.12010772]
[1772305742234,2.22829534,82.029,82.003,12.1946758]
[1772305742960,2.22829534,82.009,81.99,0.2]
[1772305745634,2.22829534,82.016,81.991,14.3165683]
[1772305745955,2.22829534,82.016,81.992,2.12010772]
[1772305746257,2.22829534,82.036,82.001,2.12010772]
[1772305747441,12.18991893,82.035,82.002,12.19482451]
[1772305747640,2.22829534,82.034,82.003,2.12010772]
[1772305750069,60.93044387,82.061,81.99,0.2]
[1772305750070,2.22829534,82.032,81.996,2.12010772]
[1772305750251,2.22829534,82.029,81.996,2.12010772]
[1772305751658,2.22829534,82.029,81.99,0.2]
[1772305751841,2.22829534,82.019,81.99,12.39654871]
[1772305753358,5.92770615,82.04,81.98,0.2]
[1772305753359,2.22829534,82.009,81.98,0.2]
[1772305753573,2.22829534,82.009,81.981,12.1979483]
[1772305753975,2.22829534,82.009,81.98,0.2]
[1772305754269,2.22829534,82.009,81.981,12.1979483]
[1772305754479,2.22829534,82.009,81.98,0.2]
[1772305754764,5.92770615,82.0,81.98,0.2]
[1772305754965,2.22829534,81.999,81.98,0.2]
[1772305755465,2.22829534,81.997,81.98,0.2]
[1772305757452,2.22829534,81.997,81.981,12.1979483]
[1772305757649,12.19571686,81.996,81.98,0.2]
[1772305757868,2.2698973,81.989,81.97,0.2]
[1772305758068,2.2698973,81.995,81.97,2.39347938]
[1772305758957,2.2698973,81.995,81.971,14.39291576]
[1772305759760,12.19601434,81.994,81.971,2.19347938]
[1772305759942,2.2698973,81.993,81.971,2.19347938]
[1772305760147,5.92770615,81.99,81.971,2.19347938]
[1772305760346,2.2698973,81.989,81.97,0.2]
[1772305760848,2.2698973,81.989,81.97,2.39347938]
[1772305761150,5.92770615,81.99,81.97,2.39347938]
[1772305761151,12.19601434,81.994,81.971,12.19943638]
[1772305761353,12.19601434,81.994,81.972,2.19347938]
[1772305761868,2.2698973,82.0,81.974,2.19347938]
[1772305762161,8.19760345,82.0,81.974,2.19347938]
[1772305762346,2.2698973,81.999,81.974,2.19347938]
[1772305763165,103.62694298,82.025,81.97,0.2]
[1772305763166,2.2698973,81.989,81.97,0.2]
[1772305763664,103.62694298,82.025,81.95,0.2]
[1772305763665,2.2698973,81.979,81.95,0.2]
[1772305763866,2.2698973,81.969,81.951,12.20241363]
[1772305764075,5.92770615,81.97,81.951,14.39589301]
[1772305764266,12.19906243,81.974,81.951,14.39589301]
[1772305764579,8.19760345,81.97,81.95,0.2]
[1772305764878,2.2698973,81.959,81.93,2.39347938]
[1772305765049,2.2698973,81.949,81.922,12.20668499]
[1772305765250,2.2698973,81.949,81.925,12.20618606]
[1772305765969,2.2698973,81.948,81.927,12.20598825]
[1772305766766,2.2698973,81.939,81.914,2.19347938]
[1772305766961,2.2698973,81.939,81.92,12.40695086]
[1772305767167,2.2698973,81.939,81.92,0.2]
[1772305768479,2.2698973,81.939,81.922,12.20665731]
[1772305768974,2.2698973,81.939,81.92,0.2]
[1772305769177,2.2698973,81.939,81.921,12.20678939]
[1772305770970,2.2698973,81.939,81.92,0.2]
[1772305771161,2.2698973,81.939,81.921,12.20679242]
[1772305772673,2.2698973,81.939,81.92,0.2]
[1772305772880,2.2698973,81.939,81.92,12.40696325]
[1772305773168,2.2698973,81.947,81.927,2.19347938]
[1772305773373,5.95452338,81.96,81.927,2.19347938]
[1772305774577,12.20122256,81.959,81.928,2.19347938]
[1772305775077,12.19660934,81.99,81.951,2.19347938]
[1772305775262,2.2698973,81.989,81.951,2.19347938]
[1772305775464,2.2698973,82.003,81.961,2.19347938]
[1772305775676,2.2698973,82.003,81.96,5.95452338]
[1772305775677,2.2698973,82.003,81.971,2.19347938]
[1772305776373,2.2698973,81.979,81.941,2.19347938]
[1772305776578,2.2698973,81.959,81.927,2.19347938]
[1772305776878,2.2698973,81.949,81.92,0.2]
[1772305777359,8.22442068,81.94,81.92,0.2]
[1772305777560,8.22442068,81.94,81.892,1e-08]
[1772305777561,2.2698973,81.939,81.892,1e-08]
[1772305777764,5.95452338,81.91,81.892,1e-08]
[1772305778477,5.95452338,81.91,81.87,5.95452338]
[1772305778478,5.95452338,81.9,81.88,1e-08]
[1772305778680,5.95452338,81.89,81.844,2.37179385]
[1772305778981,0.03248637,81.879,81.844,2.37179385]
[1772305780483,0.23112666,81.91,81.871,2.37179385]
[1772305780484,12.20867059,81.909,81.871,2.37179385]
[1772305780688,12.20867059,81.909,81.87,15.97616659]
[1772305780689,12.20867059,81.909,81.873,2.37179385]
[1772305780856,0.08897869,81.908,81.873,2.37179385]
[1772305782464,0.23112666,81.91,81.873,2.37179385]
[1772305782782,0.23112666,81.91,81.875,2.37179385]
[1772305782960,16.20729325,81.91,81.875,2.37179385]
[1772305783162,0.15336312,81.927,81.882,2.37179385]
[1772305783358,0.15336312,81.919,81.882,2.37179385]
[1772305784366,15.97616659,81.92,81.882,2.37179385]
[1772305784571,28.18323944,81.92,81.883,42.74391509]
[1772305784777,15.97616659,81.92,81.884,2.42992412]
[1772305786066,28.1832978,81.92,81.884,2.42992412]
[1772305786263,28.47891225,81.92,81.884,2.42992412]
[1772305786676,28.47891225,81.92,81.885,12.21224888]
[1772305786884,28.47891225,81.92,81.886,2.40140427]
[1772305787671,0.36434663,81.919,81.886,2.40140427]
[1772305788781,58.70087592,81.92,81.887,14.61335488]
[1772305788782,0.39813501,81.917,81.887,14.61335488]
[1772305789076,0.39813501,81.917,81.888,2.40140427]
[1772305789285,0.39813501,81.917,81.881,12.21273773]
[1772305789587,0.39813501,81.917,81.87,15.97616659]
[1772305789588,0.43147223,81.909,81.873,2.40140427]
[1772305791784,0.43147223,81.909,81.875,2.40140427]
[1772305793779,12.64019093,81.909,81.877,2.40140427]
[1772305793979,0.59276523,81.908,81.877,2.40140427]
[1772305795092,12.83268508,81.908,81.877,2.40140427]
[1772305796395,12.83268508,81.908,81.879,2.40140427]
[1772305796898,0.68510805,81.923,81.881,2.40140427]
[1772305797081,0.68510805,81.929,81.881,2.40140427]
[1772305797691,0.68510805,81.909,81.873,2.40140427]
[1772305798604,12.20881965,81.908,81.875,2.40140427]
[1772305798900,0.7449268,81.907,81.875,2.40140427]
[1772305800498,0.77432229,81.889,81.845,2.40140427]
[1772305800794,15.97616659,81.88,81.847,2.40140427]
[1772305800997,0.77432229,81.887,81.847,2.40140427]
[1772305801907,5.96384051,81.88,81.847,2.40140427]
[1772305802501,6.79594231,81.88,81.847,2.40140427]
[1772305802702,5.96384051,81.88,81.849,2.40140427]
[1772305802901,12.21209974,81.886,81.851,2.40140427]
[1772305803080,0.86049665,81.894,81.851,2.40140427]
[1772305803281,5.96384051,81.89,81.851,2.40140427]
[1772305803503,19.0358598,81.89,81.851,2.40140427]
[1772305804605,0.88861417,81.889,81.853,2.40140427]
[1772305805609,0.91640656,81.869,81.842,8.40909091]
[1772305805783,0.943855,81.859,81.842,5.7535379]
[1772305805979,5.96384051,81.85,81.829,2.40140427]
[1772305806287,0.19610217,81.879,81.797,2.84372135]
[1772305806491,5.96384051,81.82,81.795,1e-08]
[1772305806813,42.77212234,81.829,81.795,1e-08]
[1772305806814,0.02783239,81.809,81.795,1e-08]
[1772305807411,2.3251722,81.789,81.733,6.36445362]
[1772305807716,2.3251722,81.798,81.76,16.00786013]
[1772305807916,16.00786013,81.8,81.76,16.00786013]
[1772305808106,2.3251722,81.769,81.711,6.36714308]
[1772305808412,16.00786013,81.72,81.711,6.36714308]
[1772305808622,16.00786013,81.72,81.68,16.00786013]
[1772305808623,16.00786013,81.72,81.681,12.24271069]
[1772305808829,16.00786013,81.71,81.67,16.00786013]
[1772305809040,2.3251722,81.709,81.658,12.24615239]
[1772305809192,2.3251722,81.719,81.631,208.25421714]
[1772305809394,0.19610217,81.718,81.69,16.00786013]
[1772305809605,2.3251722,81.734,81.701,2.40140427]
[1772305809909,2.3251722,81.734,81.7,16.00786013]
[1772305809910,2.3251722,81.709,81.671,2.40140427]
[1772305810115,16.00786013,81.7,81.671,2.40140427]
[1772305810318,2.3251722,81.719,81.671,2.40140427]
[1772305810519,16.00786013,81.71,81.673,2.40140427]
[1772305810707,2.3251722,81.699,81.662,2.40140427]
[1772305811101,2.3251722,81.708,81.671,2.40140427]
[1772305811301,12.237206,81.718,81.681,2.40140427]
[1772305811499,14.5623782,81.718,81.681,2.40140427]
[1772305811902,30.74519561,81.731,81.711,2.40140427]
[1772305811903,0.15688174,81.731,81.711,2.40140427]
[1772305812097,2.3251722,81.761,81.72,16.00786013]
[1772305812295,2.3251722,81.761,81.682,1.22425993]
[1772305812296,2.3251722,81.771,81.731,2.40140427]
[1772305812498,16.00786013,81.78,81.741,2.40140427]
[1772305812700,14.55325031,81.779,81.743,2.40140427]
[1772305812900,2.3251722,81.792,81.76,18.4092644]
[1772305813100,2.3251722,81.792,81.761,2.40140427]
[1772305813404,2.3251722,81.789,81.761,2.40140427]
[1772305813716,2.3251722,81.789,81.751,2.40140427]
[1772305814720,2.3251722,81.787,81.752,12.23211664]
[1772305815120,2.3251722,81.787,81.752,14.63352091]
[1772305815338,2.3251722,81.787,81.753,2.40140427]
[1772305815506,2.3251722,81.797,81.761,2.40140427]
[1772305815826,1.2234062,81.796,81.761,2.40140427]
[1772305816203,1.2234062,81.816,81.771,2.40140427]
[1772305816405,1.2234062,81.816,81.781,2.77413637]
[1772305816605,12.22316597,81.812,81.781,2.77413637]
[1772305816819,1.2234062,81.811,81.782,12.22762955]
[1772305817022,1.2234062,81.818,81.783,2.77413637]
[1772305817933,12.22282584,81.815,81.783,2.77413637]
[1772305818135,1.2234062,81.814,81.783,2.77413637]
[1772305818516,15.00321488,81.815,81.783,2.77413637]
[1772305818818,2.78046534,81.809,81.773,12.22897533]
[1772305819017,4.00387154,81.808,81.773,12.22897533]
[1772305819216,4.00387154,81.808,81.773,15.0031117]
[1772305819433,2.78046534,81.807,81.773,15.0031117]
[1772305819733,1.2234062,81.806,81.78,16.00786013]
[1772305821130,2.78046534,81.799,81.76,16.00786013]
[1772305821327,2.78046534,81.798,81.76,16.00786013]
[1772305821509,2.78046534,81.789,81.754,2.77413637]
[1772305822019,2.78046534,81.789,81.76,18.7819965]
[1772305822609,2.78046534,81.789,81.75,42.81345565]
[1772305822610,2.78046534,81.799,81.771,2.77413637]
[1772305822814,2.78046534,81.808,81.771,2.77413637]
[1772305823013,2.78046534,81.806,81.771,2.77413637]
[1772305823316,2.78046534,81.804,81.772,12.22912488]
[1772305823510,2.78046534,81.802,81.772,12.22912488]
[1772305826111,30.55651869,81.816,81.772,12.22912488]
[1772305826112,1.2234062,81.809,81.781,2.77413637]
[1772305826333,2.78046534,81.818,81.781,2.77413637]
[1772305826533,2.78046534,81.821,81.791,2.77413637]
[1772305827534,2.78046534,81.821,81.792,12.22613458]
[1772305827837,2.78046534,81.821,81.792,15.00027095]
[1772305828621,12.22195062,81.82,81.776,2.77413637]
[1772305828824,12.22195062,81.82,81.738,2.77413637]
[1772305828825,2.78046534,81.789,81.738,2.77413637]
[1772305829022,1.2234062,81.819,81.731,2.77413637]
[1772305829023,2.78046534,81.769,81.731,2.77413637]
[1772305831040,2.78046534,81.767,81.733,2.77413637]
[1772305831240,2.78046534,81.767,81.732,12.23510987]
[1772305831616,2.78046534,81.767,81.733,2.77413637]
[1772305831814,2.78046534,81.776,81.733,2.77413637]
[1772305832043,16.00786013,81.77,81.733,2.77413637]
[1772305832318,2.78046534,81.769,81.733,2.77413637]
[1772305833042,12.22972311,81.768,81.734,12.23481048]
[1772305833333,12.22972311,81.768,81.735,2.77413637]
[1772305833714,2.78046534,81.769,81.741,2.77413637]
[1772305834315,12.22908278,81.773,81.741,2.77413637]
[1772305834537,12.2285267,81.776,81.741,2.77413637]
[1772305834834,2.78046534,81.777,81.75,18.79232402]
[1772305835037,2.78046534,81.777,81.751,2.77413637]
[1772305835218,2.78046534,81.777,81.752,12.23211664]
[1772305835421,13.45073589,81.785,81.753,2.77413637]
[1772305836234,1.2234062,81.785,81.753,2.77413637]
[1772305836525,2.78046534,81.786,81.753,2.77413637]
[1772305836735,12.22718102,81.785,81.753,2.77413637]
[1772305837742,1.2234062,81.796,81.755,2.77413637]
[1772305837946,2.78046534,81.804,81.761,2.77413637]
[1772305838146,2.78046534,81.802,81.761,2.77413637]
[1772305838345,2.78046534,81.8,81.761,2.77413637]
[1772305838651,2.78046534,81.823,81.79,18.79232402]
[1772305839154,2.78046534,81.823,81.791,2.77413637]
[1772305839647,2.78046534,81.823,81.792,15.00027095]
[1772305839825,2.78046534,81.823,81.793,2.77413637]
[1772305841172,2.78046534,81.836,81.801,2.77413637]
[1772305842661,30.54512548,81.847,81.794,42.79042471]
[1772305842831,3.32877722,81.874,81.84,16.01818765]
[1772305843032,3.32877722,81.869,81.83,16.01818765]
[1772305843227,3.32877722,81.859,81.82,46.57270672]
[1772305843655,3.32877722,81.859,81.821,42.77630436]